{"text_format":"1","workbook":"xlsx","n_sheets":10,"sheets":["Contexte","Proposition GT SOCOL","Glossaire","Schema CESC","source","Notice et Définitions","Suivi instal TYPE 1","Suivi instal TYPE 2","Suivi instal TYPE 3","Suivi instal TYPE 4"],"not_rendered":{"charts":7,"images":114,"macros":1,"external_links":0,"defined_names":15,"comments":0,"pivot_tables":0},"unopened":[],"bounds":{"document_bytes":16777216,"sheet_cells":100000,"rows_first":2000,"rows_last":500,"rows_between":2000,"halvings":0,"cell_chars":16384,"cell_head_chars":4096},"cells_cut":0,"cells_raw":0,"read":"whole","date_system":"1900"}

{"sheet":"Contexte","index":0,"n_rows":19,"n_cols":1,"rows_kept":19,"cut":false,"hidden":false,"merged":[]}
["Introduction"]
[" "]
["Un projet en solaire thermique collectif ne s’arrête pas à la mise en service de l’installation. "]
[" "]
["Comme le rappelle l’ensemble des outils SOCOL et notamment le guide du commissionnement (avec la Mise en Service Dynamique (MESDyn)), une installation doit avant tout être bien conçue et dimensionnée, puis mise en œuvre par un professionnel qualifié et aboutir à une mise en service dynamique documentée. Ensuite commence la vie de l’ouvrage, qui pourra garantir une production d’eau chaude sanitaire solaire pendant des décennies en étant entretenue et suivie par un professionnel compétent. "]
[]
["Une installation solaire, aussi bien appréhendée, conçue et installée à sa base peut se voir contrarier par des aléas, ou évènements durant son existence. Une baisse de consommation en Eau Chaude Sanitaire (ECS), un organe défaillant ou usé prématurément… peuvent impacter les performances de l’installation solaire sans que l’usager (ou Maitre d’Ouvrage) ne s’en aperçoive.  L’appoint étant toujours positionné en aval du système solaire, celui-ci assure en permanence la fourniture en chaleur."]
["Ainsi une défaillance d’une installation solaire aura en priorité pour conséquence d’augmenter les consommations énergétiques de l’appoint mais également d’augmenter le risque de dégradations/usures de cette dernière."]
[" "]
["Le suivi est le seul moyen de garantir le bon fonctionnement de l’installation sur la durée et de mener une exploitation cohérente avec la technologie et les économies générées. "]
[" "]
["Il faut donc : Adapter le suivi à la taille de l’installation et aux attentes du maître d’ouvrage"]
[]
["On peut distinguer 3 types de fonctions de suivi des installations solaires thermiques qui répondent à 3 objectifs complémentaires. Certains outils répondent à un seul des objectifs, d’autres à plusieurs. "]
[]
["Voici un tableau mettant en évidence les trois niveaux de surveillance avec leurs caractéristiques et actions associées :"]
[]
[]
["Ce tableau clarifie les trois niveaux de surveillance, leurs objectifs, et les différentes actions qui y sont associées."]

{"sheet":"Proposition GT SOCOL","index":1,"n_rows":36,"n_cols":10,"rows_kept":36,"cut":false,"hidden":false,"merged":[[6,7,6,8],[7,7,7,8],[0,7,0,8],[1,7,1,8],[2,7,2,8],[3,7,3,8],[4,7,4,8],[5,7,5,8]]}
["1ère lettre","Définie la notion d'Energie",null,null,null,null,null,"Solaire",null,"S"]
["Q",null,null,null,null,null,null,"Appoint",null,"App"]
[null,"2nd lettre","Qualifie le \"générateur\"",null,null,null,null,"Utile",null,"U"]
[null,"App",null,null,null,null,null,"Pertes thermiques",null,"Pr"]
[null,"S","3ème lettre","précise le type de mesure",null,null,null,"ECS",null,"ECS"]
[null,"Pr","U",null,null,null,null,"Bouclage",null,"Bcl"]
[null,null,null,null,null,null,null,"Piscine",null,"Pis"]
[null,null,null,null,null,null,null,"Chauffage",null,"Ch"]
["Qapp","Energie Appoint"]
["QSU ecs","Energie Solaire Utile pour l'ECS"]
["QSU bcl","Energie Solaire Utile au bouclage"]
["QSU pis","Energie solaire Utile au chauffage du bassin de la piscine"]
["Qpr bcl","Pertes du bouclage"]
["Qch","Energie livrée au chauffage"]
["Qsol","Energie solaire transmise à l'échangeur solaire (selon la RE2020)"]
["Qpr app","Pertes de l'appoint"]
[]
["Fsol : fraction solaire ou taux de couverture solaire (part de solaire dans les besoin) =ESU/Qecs"]
["Fpac : Part de production termique assurée par la PAC"]
["Qpacsol :  Energie thermique fournie par le condenseur de la PAC et envoyée vers le ballon de préchauffage"]
["WPacSo : Energie électrique consommée par la PAC"]
[]
[]
["Notions importantes préalable:"]
[null,"Q = Chaleur"]
[null,"E= Energie Primaire"]
[]
["Selon l'EN12977:"]
[null,"P = Puissance"]
[null,"Q= Energie"]
[]
["Selon En15316 -3 / -4:"]
[null,"Q = Chaleur"]
[null,"W = conso Electrique"]
[]
["Nomenclature En 52000-1"]

{"sheet":"Glossaire","index":2,"n_rows":35,"n_cols":11,"rows_kept":35,"cut":false,"hidden":false,"merged":[[23,5,25,5]]}
["Métrologie minimale pour les bilans énergétiques",null,"b) Appoint séparé  "," ","c) Appoint intégré  ",null,"d) CESCAI",null,"e) Appoint séparé et retour contrôlé du bouclage dans le stock solaire ou appoint",null,"f) Stockage en eau technique"]
[" ",null,"→ Un compteur d’énergie sur l’eau sanitaire aux bornes du ou des ballon(s) solaire(s).",null,"→ 1 Compteur d’énergie sur l’eau sanitaire,",null,"→ 1 compteur d’énergie sur l’eau sanitaire (mitigeur compris)",null,"→ 1 compteur d’énergie sur l’eau sanitaire",null,"→ 1 compteur d’énergie sur l’eau sanitaire"]
[" ",null,null,null,"                      +",null,"+",null,"+"]
["a) Schémathèque et emplacement de la métrologie",null,null,null,"1 compteur d’énergie électrique ou hydraulique (exemple ci-dessous) ",null,"1 compteur d’énergie sur la part du retour bouclage passant par le ballon solaire",null,"→ 1 compteur d’énergie sur la partie du bouclage passant par le ballon solaire"]
[" ",null,null,null,"                      +",null,null,null,"                              C2 doit être réversible, c’est-à-dire compter 2 énergies :"]
["Le matériel de suivi à mettre en place (nombre et emplacement des compteurs) dépend principalement de deux paramètres :",null,null,null,"1 compteur d’énergie sur le bouclage ",null,null,null,"                                   E2 quand tout se passe comme prévu"," "]
["§  Positionnement de l’appoint : intégré au ballon solaire ou séparé",null,null,null,null,null,null,null,"et E’2 lorsque T < T (dysfonctionnement de la fonction récupération d’énergie"]
["§  Présence ou non d’un bouclage sur le ballon solaire  ",null,null,null,null,null,null,null,"                               solaire par le bouclage, néfaste au solaire et qui perturbe la mesure de E1) "]
[" "]
["On peut ainsi définir quelques « schémas-type » d’installation solaire, correspondant aux différentes configurations d’instrumentation et d’exploitations des mesures."]
[" "]
["Deux types de compteurs sont utilisés :"]
[]
["¤ Compteur d’énergie thermique : constitué par deux sondes de température (une « chaude »  T  et une « froide »    T  , un compteur volumétrique   V       et un module de calcul et d’affichage  C 1  , il fournit deux informations : l’énergie (E1) et le volume (V1) qui a traversé le compteur."]
["¤  Compteur électrique : il fournit uniquement une énergie (E1).",null,"•        Calcul des besoins en ECS ",null,"•        Mesure des besoins en ECS BECS = E1",null," Calcul des besoins en ECS "]
[" ",null," ",null," ",null," "]
["L’énergie est systématiquement relevée.",null,"Pour pallier le fait que la température de l’eau dans le ballon solaire peut être plus élevée que la température de consigne de l’appoint, on calcule une différence de température (moyenne mensuelle) entre l’entrée et la sortie du ballon solaire :",null,"•        Mesure de l’énergie d’appoint totale Eapp = E2",null,"Pour pallier le fait que la température de l’eau dans le ballon solaire peut être plus élevée que la température de consigne de l’appoint, on calcule une différence de température (moyenne mensuelle) entre l’entrée et la sortie du ballon solaire :",null,null,null,"•        Calcul des besoins en ECS "]
[" ",null," ",null,"•        Mesure des pertes de bouclage Pbou = E3",null," ",null," Energie solaire utile et besoins ",null," "]
["Le volume d’eau ne l’est que sur le compteur placé sur le réseau d’eau sanitaire, en entrée du stock solaire.",null,"ΔT = E1 / (Cv x V1)",null," ",null,"ΔT = E1/(Cv x V1)",null," ",null,"Pour pallier le fait que la température de l’eau dans le ballon solaire peut être plus élevée que la température de consigne de l’appoint, on calcule une différence de température (moyenne mensuelle) entre l’entrée et la sortie du ballon solaire :"]
[" ",null," ",null,"•        Estimation de l’Energie solaire utile  ",null," ",null,"Idem 1er cas, appoint séparé, mais l’énergie solaire qui compense les pertes de bouclage (lorsque la température dans le stock solaire est suffisante) doit être considérée comme partie intégrante de l’énergie solaire utile. On a alors :",null," "]
["Sont présentés dans les paragraphes suivants :",null,"La température d’eau chaude « corrigée » prise en compte pour calculer les besoins est donc :",null,"Eu = BECS + Pbou  – (Eapp - Papp) = E1 + E3 – (E2 – Papp) ",null,"La température d’eau chaude « corrigée » prise en compte pour calculer les besoins est donc :",null," ",null,"ΔT = E1 / (Cv x V1)"]
["§  La métrologie minimale à installer",null," ",null," ",null,"TEC = max (Tcons ; TEF + ΔT)",null,"Eu = E1 + E2 – E’2 ",null," "]
["§  Les mesures et calculs à effectuer pour obtenir le besoin énergétique pour le soutirage d’eau chaude (BECS) et l’énergie solaire utile produite (Eu)",null,"TEC = max (Tcons ; TEF + ΔT)",null,"Avec",null," ",null,null,null,"La température d’eau chaude « corrigée » prise en compte pour calculer les besoins est donc :"]
[null,null," ",null,"Papp = 24.N.(Tecs – Tlocal).D.Vapp / Vn / 1000            (kWh/mois) ",null,"E : BECS = V1 x Cv x (TEC – TEF)",null,null,null," "]
[null,null,"Et :  BECS = V1 x Cv x (TEC – TEF)",null," ",null," ",null,null,null,"TEC = max (Tcons ; TEF + ΔT)"]
[null,null," ",null,"Avec :  N = nombre de jours dans le mois",null," Mesure de l’Energie solaire utile ",null,null,null," "]
[null,null,"•        Mesure de l’Energie solaire utile ",null,"           Tecs = Température de consigne de l’appoint (°C)",null," ",null,null,null,"Et :      BECS = V1 x Cv x (TEC – TEF)"]
[null,null," ",null,"            Tlocal = Température du local dans lequel est situé le ballon de stockage (°C)",null,"Eu = E1",null,null,null," "]
[null,null,"Eu = E1",null,"            D = Coefficient de déperditions thermiques du ballon  (W/K)",null," ",null,null,null,"•        Mesure de l’Energie solaire utile "]
[null,null,null,null,"            Vapp = Capacité du ballon pouvant être chauffée par l’appoint (L)",null," ",null,null,null," "]
[null,null,null,null,"            Vn = Capacité nominale du ballon (L)",null,"Si on veut faire une comparaison avec un calcul SOLO, on doit déduire les pertes de bouclage E2 à l’énergie solaire utile théorique calculée par la méthode SOLO (EuthSOLO).",null,null,null,"Eu = E1"]
[null,null,null,null,null,null," "]
[null,null,null,null,null,null,"L’énergie solaire utile théorique s’écrit alors :  Euth = EuthSOLO – E2"]
[null,null,null,null,null,null," "]
[null,null,null,null,null,null,"Attention toutefois, cela permet de vérifier un bon fonctionnement global, même avec des pertes E2 importantes… "]

{"sheet":"Schema CESC","index":3,"n_rows":62,"n_cols":14,"rows_kept":62,"cut":false,"hidden":false,"merged":[[3,5,3,7],[6,1,6,3],[3,1,3,3]]}
[]
[]
[]
[null,"Caractéristiques du circuit solaire",null,null,null,"Caractéristiques du stockage",null,null,null,"Caractéristiques du bouclage sanitaire"]
[null,null,"Circuit : ","Circuit sous pression",null,null,"Fluide de stockage :","Eau technique",null,null,"Pas de bouclage sanitaire"]
[null,null,"Echangeur : ","Echangeur externe au ballon",null,null,"Type d'appoint :","Appoint intégré"]
[null,"Caractéristiques de l'appoint",null,null,null,null,"Nombre de ballons :","1 ballon solaire",null,null,"Fichier de Suivi ADEME"]
[null,null,"Appoint :","Hydraulique",null,null,{"$f":"IF(H5=\"Eau chaude sanitaire\",\"\",\"Production d'ECS :\")","v":"Production d'ECS :"},"Echangeur à plaques et circulateur",null,null,{"$f":"IF(H6=\"appoint séparé\", \"Suivi Instal TYPE 1\", IF(AND(H6=\"Appoint intégré\",K5=\"Pas de bouclage sanitaire\"), \"Suivi Instal TYPE 2\",\"Suivi Instal TYPE 3\"))","v":"Suivi Instal TYPE 2"}]
[]
[null,null,null,null,null,null,null,null,null,null,null,null,null,"suivi install TYPE 1"]
[null,null,null,null,null,null,null,null,null,null,null,null,null,"suivi install TYPE 2"]
[null,null,null,null,null,null,null,null,null,null,null,null,null,"suivi install TYPE 3"]
[null,null,null,null,null,null,null,null,null,null,null,null,null,"suivi install TYPE 4"]
[]
[]
[]
[]
[]
[]
[]
[]
[]
[]
[]
[]
[]
[]
[]
[]
[]
[]
[]
[]
[]
[]
[]
[]
[null,null,null,null,null,null,null,null,null,null,"Version 1.2 du 17 décembre 2024"]
[]
[]
[]
[]
[]
[]
[]
[null,null,null,{"$f":"_xlfn.CONCAT(\"Capteur-\",IF(D6=$D$52,\"EE\",\"EI\"),IF(D5=$D$49,\"-DB-\",\"-P-\"),IF(D8=$D$55,\"AppHydrau\",\"AppElec\"))","v":"Capteur-EE-P-AppHydrau"},null,null,null,{"$f":"_xlfn.CONCAT(\"STO-\",IF(H5=$H$49,\"ECS\",_xlfn.CONCAT(\"ET\",IF(H8=$H$58,\"_PL\",\"_IM\"))),IF(H7=$H$55,\"-1B\",\"-2B\"),IF(D6=$D$52,\"-NoEch\",\"-EchInt\"),IF(H6=$H$52,\"-AppSep\",\"-AppInt\"),IF(D8=$D$55,\"Hydrau\",\"Elec\"),IF(K5=$K$49,\"-NoBou\",IF(K5=$K$50,\"-BouApp\",\"-BouAppSol\")))","v":"STO-ET_PL-1B-NoEch-AppIntHydrau-NoBou"},null,null,{"$f":"_xlfn.CONCAT(\"ProdECS_\",IF(H5=$H$49,\"ECS\",IF(H8=$H$58,\"ET_PL\",\"ET_IM\")),IF(H6=$H$52,\"_AppSep\",\"_AppInt\"),IF(K5=$K$49,\"_NoBou\",IF(K5=$K$50,\"_BouApp\",\"_BouAppSol\")))","v":"ProdECS_ET_PL_AppInt_NoBou"}]
[null,null,null,{"$f":"MATCH(D46,source!$A$1:$A$8,0)","v":2},null,null,null,{"$f":"IFERROR(MATCH(H46,source!$D$1:$D$85,0),77)","v":29},null,null,{"$f":"IFERROR(MATCH(K46,source!$G$1:$G$85,0),14)","v":10}]
[]
[null,null,null,"Circuit autovidangeable",null,null,null,"Eau chaude sanitaire",null,null,"Pas de bouclage sanitaire"]
[null,null,null,"Circuit sous pression",null,null,null,"Eau technique",null,null,"Bouclage sanitaire réchauffé par l'appoint"]
[null,null,null,null,null,null,null,null,null,null,"Bouclage sanitaire réchauffé par le solaire ou l'appoint"]
[null,null,null,"Echangeur externe au ballon",null,null,null,"Appoint séparé"]
[null,null,null,"Echangeur interne au ballon",null,null,null,"Appoint intégré"]
[]
[null,null,null,"Hydraulique",null,null,null,"1 ballon solaire"]
[null,null,null,"Electrique",null,null,null,"2 ballons solaire ou plus"]
[]
[null,null,null,null,null,null,null,{"$f":"IF($H$5=\"Eau technique\",H61,\"\")","v":"Echangeur à plaques et circulateur"}]
[null,null,null,null,null,null,null,{"$f":"IF($H$5=\"Eau technique\",H62,\"\")","v":"Echangeur serpentin immergé"}]
[]
[null,null,null,null,null,null,null,"Echangeur à plaques et circulateur"]
[null,null,null,null,null,null,null,"Echangeur serpentin immergé"]

{"sheet":"source","index":4,"n_rows":77,"n_cols":7,"rows_kept":77,"cut":false,"hidden":true,"merged":[]}
["Capteur-EE-DB-AppHydrau",null,null,"Sto-ECS-1B-EchInt-AppIntHydrau-BouApp",null,null,"ProdECS_ECS_AppInt_BouApp"]
["Capteur-EE-P-AppHydrau",null,null,"Sto-ECS-1B-EchInt-AppIntHydrau-NoBou",null,null,"ProdECS_ECS_AppInt_NoBou"]
["Capteur-EI-DB-AppHydrau",null,null,"Sto-ECS-1B-EchInt-AppSepHydrau-BouApp",null,null,"ProdECS_ECS_AppSep_BouApp"]
["Capteur-EI-P-AppHydrau",null,null,"Sto-ECS-1B-EchInt-AppSepHydrau-BouAppSol",null,null,"ProdECS_ECS_AppSep_BouAppSol"]
["Capteur-EE-DB-AppElec",null,null,"Sto-ECS-1B-EchInt-AppSepHydrau-NoBou",null,null,"ProdECS_ECS_AppSep_NoBou"]
["Capteur-EE-P-AppElec",null,null,"Sto-ECS-1B-NoEch-AppIntHydrau-BouApp",null,null,"ProdECS_ET_IM_AppSep_BouApp"]
["Capteur-EI-DB-AppElec",null,null,"Sto-ECS-1B-NoEch-AppIntHydrau-NoBou",null,null,"ProdECS_ET_IM_AppSep_BouAppSol"]
["Capteur-EI-P-AppElec",null,null,"Sto-ECS-1B-NoEch-AppSepHydrau-BouApp",null,null,"ProdECS_ET_IM_AppSep_NoBou"]
[null,null,null,"Sto-ECS-1B-NoEch-AppSepHydrau-BouAppSol",null,null,"ProdECS_ET_PL_AppInt_BouApp"]
[null,null,null,"Sto-ECS-1B-NoEch-AppSepHydrau-NoBou",null,null,"ProdECS_ET_PL_AppInt_NoBou"]
[null,null,null,"Sto-ECS-2B-EchInt-AppSepHydrau-BouApp",null,null,"ProdECS_ET_PL_AppSep_BouApp"]
[null,null,null,"Sto-ECS-2B-EchInt-AppSepHydrau-BouAppSol",null,null,"ProdECS_ET_PL_AppSep_BouAppSol"]
[null,null,null,"Sto-ECS-2B-EchInt-AppSepHydrau-NoBou",null,null,"ProdECS_ET_PL_AppSep_NoBou"]
[null,null,null,"Sto-ECS-2B-NoEch-AppSepHydrau-BouApp",null,null,"Erreur"]
[null,null,null,"Sto-ECS-2B-NoEch-AppSepHydrau-BouAppSol"]
[null,null,null,"Sto-ECS-2B-NoEch-AppSepHydrau-NoBou"]
[null,null,null,"Sto-ET_IM-1B-EchInt-AppSepHydrau-BouApp"]
[null,null,null,"Sto-ET_IM-1B-EchInt-AppSepHydrau-BouAppSol"]
[null,null,null,"Sto-ET_IM-1B-EchInt-AppSepHydrau-NoBou"]
[null,null,null,"Sto-ET_IM-1B-NoEch-AppSepHydrau-BouApp"]
[null,null,null,"Sto-ET_IM-1B-NoEch-AppSepHydrau-BouAppSol"]
[null,null,null,"Sto-ET_IM-1B-NoEch-AppSepHydrau-NoBou"]
[null,null,null,"Sto-ET_PL-1B-EchInt-AppIntHydrau-BouApp"]
[null,null,null,"Sto-ET_PL-1B-EchInt-AppIntHydrau-NoBou"]
[null,null,null,"Sto-ET_PL-1B-EchInt-AppSepHydrau-BouApp"]
[null,null,null,"Sto-ET_PL-1B-EchInt-AppSepHydrau-BouAppSol"]
[null,null,null,"Sto-ET_PL-1B-EchInt-AppSepHydrau-NoBou"]
[null,null,null,"Sto-ET_PL-1B-NoEch-AppIntHydrau-BouApp"]
[null,null,null,"Sto-ET_PL-1B-NoEch-AppIntHydrau-NoBou"]
[null,null,null,"Sto-ET_PL-1B-NoEch-AppSepHydrau-BouApp"]
[null,null,null,"Sto-ET_PL-1B-NoEch-AppSepHydrau-BouAppSol"]
[null,null,null,"Sto-ET_PL-1B-NoEch-AppSepHydrau-NoBou"]
[null,null,null,"Sto-ET_PL-2B-EchInt-AppSepHydrau-BouApp"]
[null,null,null,"Sto-ET_PL-2B-EchInt-AppSepHydrau-BouAppSol"]
[null,null,null,"Sto-ET_PL-2B-EchInt-AppSepHydrau-NoBou"]
[null,null,null,"Sto-ET_PL-2B-NoEch-AppSepHydrau-BouApp"]
[null,null,null,"Sto-ET_PL-2B-NoEch-AppSepHydrau-BouAppSol"]
[null,null,null,"Sto-ET_PL-2B-NoEch-AppSepHydrau-NoBou"]
[null,null,null,"Sto-ECS-1B-EchInt-AppIntElec-BouApp"]
[null,null,null,"Sto-ECS-1B-EchInt-AppIntElec-NoBou"]
[null,null,null,"Sto-ECS-1B-EchInt-AppSepElec-BouApp"]
[null,null,null,"Sto-ECS-1B-EchInt-AppSepElec-BouAppSol"]
[null,null,null,"Sto-ECS-1B-EchInt-AppSepElec-NoBou"]
[null,null,null,"Sto-ECS-1B-NoEch-AppIntElec-BouApp"]
[null,null,null,"Sto-ECS-1B-NoEch-AppIntElec-NoBou"]
[null,null,null,"Sto-ECS-1B-NoEch-AppSepElec-BouApp"]
[null,null,null,"Sto-ECS-1B-NoEch-AppSepElec-BouAppSol"]
[null,null,null,"Sto-ECS-1B-NoEch-AppSepElec-NoBou"]
[null,null,null,"Sto-ECS-2B-EchInt-AppSepElec-BouApp"]
[null,null,null,"Sto-ECS-2B-EchInt-AppSepElec-BouAppSol"]
[null,null,null,"Sto-ECS-2B-EchInt-AppSepElec-NoBou"]
[null,null,null,"Sto-ECS-2B-NoEch-AppSepElec-BouApp"]
[null,null,null,"Sto-ECS-2B-NoEch-AppSepElec-BouAppSol"]
[null,null,null,"Sto-ECS-2B-NoEch-AppSepElec-NoBou"]
[null,null,null,"Sto-ET_IM-1B-EchInt-AppSepElec-BouApp"]
[null,null,null,"Sto-ET_IM-1B-EchInt-AppSepElec-BouAppSol"]
[null,null,null,"Sto-ET_IM-1B-EchInt-AppSepElec-NoBou"]
[null,null,null,"Sto-ET_IM-1B-NoEch-AppSepElec-BouApp"]
[null,null,null,"Sto-ET_IM-1B-NoEch-AppSepElec-BouAppSol"]
[null,null,null,"Sto-ET_IM-1B-NoEch-AppSepElec-NoBou"]
[null,null,null,"Sto-ET_PL-1B-EchInt-AppIntElec-BouApp"]
[null,null,null,"Sto-ET_PL-1B-EchInt-AppIntElec-NoBou"]
[null,null,null,"Sto-ET_PL-1B-EchInt-AppSepElec-BouApp"]
[null,null,null,"Sto-ET_PL-1B-EchInt-AppSepElec-BouAppSol"]
[null,null,null,"Sto-ET_PL-1B-EchInt-AppSepElec-NoBou"]
[null,null,null,"Sto-ET_PL-1B-NoEch-AppIntElec-BouApp"]
[null,null,null,"Sto-ET_PL-1B-NoEch-AppIntElec-NoBou"]
[null,null,null,"Sto-ET_PL-1B-NoEch-AppSepElec-BouApp"]
[null,null,null,"Sto-ET_PL-1B-NoEch-AppSepElec-BouAppSol"]
[null,null,null,"Sto-ET_PL-1B-NoEch-AppSepElec-NoBou"]
[null,null,null,"Sto-ET_PL-2B-EchInt-AppSepElec-BouApp"]
[null,null,null,"Sto-ET_PL-2B-EchInt-AppSepElec-BouAppSol"]
[null,null,null,"Sto-ET_PL-2B-EchInt-AppSepElec-NoBou"]
[null,null,null,"Sto-ET_PL-2B-NoEch-AppSepElec-BouApp"]
[null,null,null,"Sto-ET_PL-2B-NoEch-AppSepElec-BouAppSol"]
[null,null,null,"Sto-ET_PL-2B-NoEch-AppSepElec-NoBou"]
[null,null,null,"Erreur"]

{"sheet":"Notice et Définitions","index":5,"n_rows":38,"n_cols":6,"rows_kept":38,"cut":false,"hidden":false,"merged":[[19,1,19,2],[1,1,1,2],[2,1,2,2],[4,1,4,2],[5,1,5,2],[16,1,16,2],[35,1,35,2],[36,1,36,2],[37,1,37,2],[20,1,20,2],[21,1,21,2],[31,1,31,2],[32,1,32,2],[33,1,33,2],[34,1,34,2]]}
[]
[null,"Tableau de bord de suivi "]
[null,"Installation Solaire Thermique Collective"]
[]
[null,"DENOMINATION DE L'OPERATION"]
[null,"Précisez Objet (Solaire Collectif, Agricole, Teritaire, Industriel) - Lieu (Ville et Département) - Numéro de la Convention"]
[]
[null,"Maître d’ouvrage : "]
[null,"Personne à contacter : ","(: "]
[]
[null,"Correspondant ADEME : "]
[null,"Personne à contacter : ","(: "]
[]
[null,"Responsable du suivi : "]
[null,"Personne à contacter : ","(: "]
[]
[null,"TYPE D'INSTALLATION SOLAIRE "]
[]
[null,"Nomenclatures :"]
[null,"-https://www.solaire-collectif.fr/ftp/pgiArticle/3/Schematheque_SOCOL_ECS_Collective_Fev2016.pdf"]
[null,"-https://www.solaire-collectif.fr/achat/les-pac-solaires-sur-capteurs-solaires-non-vitres-ou-pvt/PACSolaires.htm"]
[null,"-https://www.solaire-collectif.fr/achat/les-systemes-solaires-combines-pour-les-batiments-collectifs/Livret_SSC.htm"]
[]
[null,"Cocher la case correspondante",null,null,"CODES COULEUR : "]
[null,"□ Production ECS ou SSC - APPOINT SEPARE - AVEC OU SANS BOUCLAGE","Remplir Suivi instal TYPE1",null,null,"cases de relevés d'index à remplir obligatoirement"]
[null,"□ Production ECS ou SSC- APPOINT INTEGRE - SANS BOUCLAGE","Remplir Suivi instal TYPE2",null,null,"cases de relevés d'index à remplir le cas échéant"]
[null,"□ Production ECS ou SSC - APPOINT INTEGRE - AVEC BOUCLAGE","Remplir Suivi instal TYPE3",null,null,"cases à reporter de l'étude de faisabilité"]
[null,"□ PAC solaire ECS","Remplir Suivi instal TYPE4",null,null,"cases calculées automatiquement"]
[]
[]
[null,"Notice : "]
[null,"Le suivi peut être assuré par le Maître d’Ouvrage avec l’assistance de son installateur ou bien de son exploitant si un contrat adapté le prévoit."]
[null,"Il est obligatoire et doit être réalisé sur une période de 24 mois minimum."]
[null,"En tout état de cause, il est conseillé de suivre son installation tout au long de la durée de vie des équipements afin de garantir des performances maximales."]
[null,"Les valeurs de productivité et de consommations d’eau réelles doivent être comparées avec l'année de référence et également entre le prévisionnel et le réel."]
[null,"Ce suivi doit permettre au Maître d’Ouvrage d’intervenir rapidement sur son installation en cas d’anomalies, en faisant appel à son installateur ou à son exploitant."]
[null,"La procédure doit favoriser le bon fonctionnement de l’installation solaire et ainsi réaliser les économies prévues lors de la conception."]
[null,"Si les conditions décrites en bas de tableaux donnent lieu à vérification, contacter dans les meilleurs délais, l’installateur ou l’exploitant (les cases grisées se remplissent automatiquement et les cases en couleur sont à renseigner; une alerte correspondant à une case qui devient rouge)."]

{"sheet":"Suivi instal TYPE 1","index":6,"n_rows":41,"n_cols":18,"rows_kept":41,"cut":false,"hidden":false,"merged":[[8,2,8,3],[8,4,8,9],[1,2,2,10],[6,2,6,3],[6,4,6,9],[7,2,7,3],[7,4,7,9],[9,2,9,3],[9,4,9,9],[10,2,10,3],[10,4,10,9],[11,2,11,3],[11,4,11,9],[12,4,12,9],[31,2,31,12],[34,2,34,16],[37,2,37,16],[40,2,40,16],[14,5,14,7],[14,13,14,15]]}
[]
[null,null,"Tableau de bord de suivi – Année 1 "]
[]
[null,null,"Production ECS - Appoint séparé - avec ou sans bouclage"]
[]
[]
[null,null,"Adresse de l’installation:"]
[null,null,"Date de mise en service :"]
[null,null,"Date du début de suivi :"]
[null,null,"Nom et coordonnées de l'exploitant :"]
[null,null,"Volume du ballon solaire [m3]"]
[null,null,"Surface entrée capteurs [m²] :"]
[null,null,"Température de consigne appoint"]
[]
[null,null,null,null,null,"VES prévisionnel",null,null,null,null,null,"Si BOUCLAGE","Si CHAUFFAGE","ESU prévisionnelle"]
[null,null,"Mois","Date du relevé","Index Vecs réel [m3]","Vecs prévisionnel [m3]","Vecs - 15%","Vecs +15%","Vecs réel [m3]","Ecart sur Vecs%","Index QSU ecs  [kWh] ","Index QSU bcl[kWh]  ","Index QSU ch[kWh]  ","QSU prévisionnel  [kWh/mois]","QSU -20% [kWh/mois)","QSU +20% [kWh/mois)","Energie solaire utile QSU [kWh] ","Ecart sur QSU%"]
[null,null,null,null,"relevé  sur compteur Volume ECS consommée ","Valeurs étude de dimensionnement ","Valeurs étude minorée de 15%","Valeurs étude majorée de 15%","Calculé","Calculé","relevé compteur\nEnergie solaire livrée à l'ECS"," relevé compteur        Energie solaire utile pour le réchauffage du bouclage sanitaire"," relevé compteur        Energie solaire utile pour le chauffage","Valeurs étude de dimensionnement","Valeurs étude minorée de 20%","Valeurs étude majorée de 20%","Calculé\ncomprenant apport au puisage, au bouclage et au chauffage","Calculé"]
[null,null,"0 - (année de référence)"]
[null,null,"janvier",null,null,null,{"$f":"F19*0.85","v":0},{"$f":"F19*1.15","v":0},{"$f":"E19-E18","v":0},{"$f":"(I19-F19)/F19","v":{"$error":"#DIV/0!"}},null,null,null,null,{"$f":"N19*0.8","v":0},{"$f":"N19*1.2","v":0},{"$f":"(K19-K18)+(L19-L18)+(M19-M18)","v":0},{"$f":"(Q19-N19)/N19","v":{"$error":"#DIV/0!"}}]
[null,null,"février",null,null,null,{"$f":"F20*0.85","v":0},{"$f":"F20*1.15","v":0},0,{"$error":"#DIV/0!"},null,null,null,null,{"$f":"N20*0.8","v":0},{"$f":"N20*1.2","v":0},{"$f":"(K20-K19)+(L20-L19)+(M20-M19)","v":0},{"$f":"(Q20-N20)/N20","v":{"$error":"#DIV/0!"}}]
[null,null,"mars",null,null,null,0,0,0,{"$error":"#DIV/0!"},null,null,null,null,0,0,0,{"$error":"#DIV/0!"}]
[null,null,"avril",null,null,null,0,0,0,{"$error":"#DIV/0!"},null,null,null,null,0,0,0,{"$error":"#DIV/0!"}]
[null,null,"mai",null,null,null,0,0,0,{"$error":"#DIV/0!"},null,null,null,null,0,0,0,{"$error":"#DIV/0!"}]
[null,null,"juin",null,null,null,0,0,0,{"$error":"#DIV/0!"},null,null,null,null,0,0,0,{"$error":"#DIV/0!"}]
[null,null,"juillet",null,null,null,0,0,0,{"$error":"#DIV/0!"},null,null,null,null,0,0,0,{"$error":"#DIV/0!"}]
[null,null,"août",null,null,null,0,0,0,{"$error":"#DIV/0!"},null,null,null,null,0,0,0,{"$error":"#DIV/0!"}]
[null,null,"septembre",null,null,null,0,0,0,{"$error":"#DIV/0!"},null,null,null,null,0,0,0,{"$error":"#DIV/0!"}]
[null,null,"octobre",null,null,null,0,0,0,{"$error":"#DIV/0!"},null,null,null,null,0,0,0,{"$error":"#DIV/0!"}]
[null,null,"novembre",null,null,null,0,0,0,{"$error":"#DIV/0!"},null,null,null,null,0,0,0,{"$error":"#DIV/0!"}]
[null,null,"décembre",null,null,null,0,0,0,{"$error":"#DIV/0!"},null,null,null,null,0,0,0,{"$error":"#DIV/0!"}]
[null,null,"TOTAL",null,null,{"$f":"SUM(F19:F30)","v":0},{"$f":"SUM(G19:G30)","v":0},0,{"$f":"SUM(I19:I30)","v":0},{"$error":"#DIV/0!"},null,null,null,null,null,{"$f":"SUM(P19:P30)","v":0},{"$f":"SUM(Q19:Q30)","v":0},{"$error":"#DIV/0!"}]
[null,null,"Productivité moyenne annuelle =total annuel énergie solaire utile / surface capteurs [kWh/m²]",null,null,null,null,null,null,null,null,null,null,null,null,null,{"$f":"Q31/$E$12","v":{"$error":"#DIV/0!"}}]
[]
[null,null,"Attention : "]
[null,null,"-Si la productivité mensuelle (ou l’énergie solaire utile) réelle est différente de celle prévisionnelle (productivité réelle < 20% productivité prévisionnelle), vérifier que les consommations en m3 d’eau prévisionnelles et réelles soient proches l'une de l'autre (15% d'écart max). Si tel est le cas, prendre contact avec l’installateur ou l’exploitant. En effet, si pour des consommations d’eau mensuelles quasi-similaires entre l’étude et le réel, la productivité a fortement chuté, l’installation présente très certainement un dysfonctionnement qu’il faut rapidement corriger. Si les consommations en ECS sont différentes de 30% de l'étude, il sera nécessaire de refaire un calcul théorique avec les données d'ensoleillement réelles du site et les valeurs réelles de puisage (cf Onglet rappel théorique suivi). "]
[]
[null,null,"Engagements du bénéficaire : "]
[null,null,"-Au moins 80% de l'engagement de production de chaleur EnR&R issu de l'étude de faisabilité. "]
[]
[null,null,"Poit de vigilance : "]
[null,null," - Pertes bouclage < 0,5 x Besoins ECS pour les bâtiments neufs\n - Pertes bouclage <  Besoins ECS pour les bâtiments existants"]

{"sheet":"Suivi instal TYPE 2","index":7,"n_rows":41,"n_cols":20,"rows_kept":41,"cut":false,"hidden":false,"merged":[[8,2,8,5],[8,6,8,9],[1,2,2,8],[6,2,6,5],[6,6,6,9],[7,2,7,5],[7,6,7,9],[40,2,40,14],[9,2,9,5],[9,6,9,9],[10,2,10,5],[10,6,10,9],[11,2,11,5],[11,6,11,9],[12,2,12,5],[13,2,13,5],[31,2,31,10],[34,2,34,14],[37,2,37,14],[14,5,14,7],[14,13,14,15]]}
[]
[null,null,"Tableau de bord de suivi – Année 1 "]
[]
[null,null,"Production ECS - APPOINT INTEGRE - SANS BOUCLAGE"]
[]
[]
[null,null,"Adresse de l’installation:"]
[null,null,"Date de mise en service :"]
[null,null,"Date du début de suivi :"]
[null,null,"Nom et coordonnées de l'exploitant :"]
[null,null,"Volume du ballon solaire  [m3]"]
[null,null,"Surface entrée capteurs [m²] :"]
[null,null,"Volume du ballon occupé par la partie appoint [m3]",null,null,null,null,null,null,null,"m3"]
[null,null,"Température moyenne annuelle du local dans lequel repose le ballon",null,null,null,null,null,null,null,"°C"]
[null,null,null,null,null,"VES prévisionnel",null,null,null,null,null,null,"Si CHAUFFAGE","ESU prévisionnelle"]
[null,null,"Mois","Date du relevé","Index Vecs réel [m3]","Vecs prévisionnel [m3]","Vecs - 15%","Vecs +15%","Vecs réel [m3]","Ecart sur Vecs%","Index Qecs [kWh]","Index Qapp_ch [kWh] ","Index Qch  [kWh] ","QSU prévisionnel  [kWh/mois]","QSU -20% [kWh/mois)","QSU +20% [kWh/mois)","Qpr_app [kWh]     ","QSU réelle [kWh]                               ","Ecart sur QSU%","Fsol "]
[null,null,null,null,"Volume ECS consommée relevé  sur compteur ","Valeurs étude de dimensionnement ","Valeurs étude minorée de 15%","Valeurs étude majorée de 15%","Calculé","Calculé","relevé sur compteur : Energie livrée exclusivement à l'ECS","relevé compteur : Energie d'appoint utile sortie chaudière","relevé compteur : Energie livrée au chauffage","Valeurs étude de dimensionnement","Valeurs étude minorée de 20%","Valeurs étude majorée de 20%","Caculé : Pertes du ballon liés au volume d'appoint*","Calculé : \nQecs+Qch+ Qst_app-Qapp_utile","Calculé","Calculé :"]
[null,null,"0 - (année de référence)"]
[null,null,"janvier",null,null,null,{"$f":"F19*0.85","v":0},{"$f":"F19*1.15","v":0},{"$f":"E19-E18","v":0},{"$f":"(I19-F19)/F19","v":{"$error":"#DIV/0!"}},null,null,null,null,{"$f":"N19*0.8","v":0},{"$f":"N19*1.2","v":0},{"$f":"0.16*($G$13*1000)^0.5*(55-$G$14)*30*24/1000","v":0},{"$f":"(K19-K18)+(M19-M18)+Q19-(L19-L18)","v":0},{"$f":"(R19-N19)/N19","v":{"$error":"#DIV/0!"}},{"$f":"R19/(R19+(L19-L18))","v":{"$error":"#DIV/0!"}}]
[null,null,"février",null,null,null,{"$f":"F20*0.85","v":0},{"$f":"F20*1.15","v":0},0,{"$f":"(I20-F20)/F20","v":{"$error":"#DIV/0!"}},null,null,null,null,{"$f":"N20*0.8","v":0},{"$f":"N20*1.2","v":0},{"$f":"0.16*($G$13*1000)^0.5*(55-$G$14)*30*24/1000","v":0},0,{"$f":"(R20-N20)/N20","v":{"$error":"#DIV/0!"}},{"$f":"R20/(R20+(L20-L19))","v":{"$error":"#DIV/0!"}}]
[null,null,"mars",null,null,null,0,0,0,{"$error":"#DIV/0!"},null,null,null,null,0,0,0,0,{"$error":"#DIV/0!"},{"$error":"#DIV/0!"}]
[null,null,"avril",null,null,null,0,0,0,{"$error":"#DIV/0!"},null,null,null,null,0,0,0,0,{"$error":"#DIV/0!"},{"$error":"#DIV/0!"}]
[null,null,"mai",null,null,null,0,0,0,{"$error":"#DIV/0!"},null,null,null,null,0,0,0,0,{"$error":"#DIV/0!"},{"$error":"#DIV/0!"}]
[null,null,"juin",null,null,null,0,0,0,{"$error":"#DIV/0!"},null,null,null,null,0,0,0,0,{"$error":"#DIV/0!"},{"$error":"#DIV/0!"}]
[null,null,"juillet",null,null,null,0,0,0,{"$error":"#DIV/0!"},null,null,null,null,0,0,0,0,{"$error":"#DIV/0!"},{"$error":"#DIV/0!"}]
[null,null,"août",null,null,null,0,0,0,{"$error":"#DIV/0!"},null,null,null,null,0,0,0,0,{"$error":"#DIV/0!"},{"$error":"#DIV/0!"}]
[null,null,"septembre",null,null,null,0,0,0,{"$error":"#DIV/0!"},null,null,null,null,0,0,0,0,{"$error":"#DIV/0!"},{"$error":"#DIV/0!"}]
[null,null,"octobre",null,null,null,0,0,0,{"$error":"#DIV/0!"},null,null,null,null,0,0,0,0,{"$error":"#DIV/0!"},{"$error":"#DIV/0!"}]
[null,null,"novembre",null,null,null,0,0,0,{"$error":"#DIV/0!"},null,null,null,null,0,0,0,0,{"$error":"#DIV/0!"},{"$error":"#DIV/0!"}]
[null,null,"décembre",null,null,null,0,0,0,{"$error":"#DIV/0!"},null,null,null,null,0,0,0,0,{"$error":"#DIV/0!"},{"$error":"#DIV/0!"}]
[null,null,"TOTAL",null,null,{"$f":"SUM(F19:F30)","v":0},{"$f":"SUM(G19:G30)","v":0},0,{"$f":"SUM(I19:I30)","v":0},{"$error":"#DIV/0!"},null,null,null,null,null,{"$f":"SUM(P19:P30)","v":0},{"$f":"SUM(Q19:Q30)","v":0},{"$f":"SUM(R19:R30)","v":0},{"$error":"#DIV/0!"},{"$f":"R31/(R31+(L30-L18))","v":{"$error":"#DIV/0!"}}]
[null,null,"Productivité moyenne annuelle =total annuel énergie solaire utile / surface capteurs [kWh/m²]",null,null,null,null,null,null,null,null,null,null,{"$f":"R31/$G$12","v":{"$error":"#DIV/0!"}}]
[]
[null,null,"*Qstapp en kWh : Pertes du ballon de référence correspond égal au volume occupé par la partie appoint dans le ballon bi-énergie"]
[null,null,"Qst,app = 0,16 . (Vst)^0,5 . [ Tst - Tloc ] . Njm. 24 / 1000                                                                                                                                                                  Vst [l] : volume de stockage de référence égal au volume occupé par la partie appoint dans le ballon bi-énergie, Tst : température de stockage = 55 °C (même si les normes EN 12976 ou ENV 12977 indiquent une température de stockage de référence de 52,5 °C), Tloc : température du local où est situé le ballon (15 °C si local non chauffé), Njm : nombre de jours du mois"]
[]
[null,null,"Attention : "]
[null,null,"-Si la productivité mensuelle (ou l’énergie solaire utile) réelle est différente de celle prévisionnelle (productivité réelle < 20% productivité prévisionnelle), vérifier que les consommations en m3 d’eau prévisionnelles et réelles soient proches l'une de l'autre (15% d'écart max). Si tel est le cas, prendre contact avec l’installateur ou l’exploitant. En effet, si pour des consommations d’eau mensuelles quasi-similaires entre l’étude et le réel, la productivité a fortement chuté, l’installation présente très certainement un dysfonctionnement qu’il faut rapidement corriger. Si les consommations en ECS sont différentes de 30% de l'étude, il sera nécessaire de refaire un calcul théorique avec les données d'ensoleillement réelles du site et les valeurs réelles de puisage (cf Onglet rappel théorique suivi). "]
[]
[null,null,"Engagements du bénéficaire : "]
[null,null,"-Au moins 80% de l'engagement de production de chaleur EnR&R issu de l'étude de faisabilité. "]

{"sheet":"Suivi instal TYPE 3","index":8,"n_rows":43,"n_cols":24,"rows_kept":43,"cut":false,"hidden":false,"merged":[[8,2,8,5],[8,6,8,7],[1,2,2,9],[6,2,6,5],[6,6,6,7],[7,2,7,5],[7,6,7,7],[14,18,14,23],[9,2,9,5],[9,6,9,7],[10,2,10,5],[10,6,10,7],[11,2,11,5],[11,6,11,7],[14,5,14,7],[14,12,14,14],[14,15,14,17],[42,2,42,13],[12,2,12,5],[12,6,12,7],[13,2,13,5],[13,6,13,7],[31,2,31,9],[32,2,32,10],[34,2,34,13],[36,2,36,13],[39,2,39,13]]}
[]
[null,null,"Tableau de bord de suivi – Année 1 "]
[]
[null,null,"Production ECS - APPOINT INTEGRE - AVEC BOUCLAGE"]
[]
[]
[null,null,"Adresse de l’installation:"]
[null,null,"Date de mise en service :"]
[null,null,"Date du début de suivi :"]
[null,null,"Nom et coordonnées de l'exploitant :"]
[null,null,"Volume du ballon solaire  [m3]"]
[null,null,"Surface entrée capteurs [m²] :"]
[null,null,"Volume occupé par la partie appoint (ballon de référence Vstconv)",null,null,null,null,null,null,"m3"]
[null,null,"Température moyenne annuelle du local dans lequel repose le ballon",null,null,null,null,null,null,"°C"]
[null,null,null,null,null,"VES prévisionnel",null,null,null,null,null,"Si CHAUFFAGE","ESU prévisionnelle",null,null,"SI ABSENCE DE COMPTEUR DE BOUCLAGE ou CHAUFFAGE",null,null,"SI PRESENCE DE COMPTEUR DE BOUCLAGE"]
[null,null,"Mois","Date du relevé","Index Vecs réel [m3]","Vecs prévisionnel [m3]","Vecs - 15%","Vecs +15%","Vecs réel [m3]","Ecart sur Vecs%","Index Qecs [kWh]","Index QSUch[kWh]  ","QSU prévisionnel  [kWh/mois]","QSU -20% [kWh/mois)","QSU +20% [kWh/mois)","Index QSol  [kWh] ","Qsol  [kWh]     ","Ecart sur QSU%","Index Qapp_utile  [kWh] ","Index Qdis[kWh]  ","Qpr_app [kWh]     ","QSU réelle [kWh]                               ","Ecart sur QSU%","Fsol "]
[null,null,null,null,"Volume ECS consommée relevé  sur compteur ","Valeurs étude de dimensionnement ","Valeurs étude minorée de 15%","Valeurs étude majorée de 15%","Calculé","Calculé","relevé sur compteur : Energie livrée exclusivement à l'ECS"," relevé compteur        Energie solaire utile pour le chauffage","Valeurs étude de dimensionnement","Valeurs étude minorée de 20%","Valeurs étude majorée de 20%","relevé sur compteur d'énergie solaire sur le primaire","Calculé","Calculé","relevé compteur : Energie d'appoint utile sortie chaudière"," relevé compteur        Energie de maintien en température de la boucle de distribution","Caculé : Pertes du ballon liés au volume d'appoint*","Calculé : \nQecs+ Qdis + Qch +Qst,app - Qapp_utile","Calculé","Calculé : \nTaux de couverture solaire"]
[null,null,"0 - (année de référence)"]
[null,null,"janvier",null,null,null,{"$f":"F19*0.85","v":0},{"$f":"F19*1.15","v":0},{"$f":"E19-E18","v":0},{"$f":"(I19-F19)/F19","v":{"$error":"#DIV/0!"}},null,null,null,{"$f":"M19*0.8","v":0},{"$f":"M19*1.2","v":0},null,{"$f":"(P19-P18)","v":0},{"$f":"(Q19-M19)/M19","v":{"$error":"#DIV/0!"}},null,null,{"$f":"0.16*($G$13*1000)^0.5*(55-$G$14)*30*24/1000","v":0},{"$f":"(K19-K18)+(L19-L18)+U19-(S18-S19)+(T19-T18)","v":0},{"$f":"(V19-M19)/M19","v":{"$error":"#DIV/0!"}},{"$f":"V19/(V19+(S19-S18))","v":{"$error":"#DIV/0!"}}]
[null,null,"février",null,null,null,{"$f":"F20*0.85","v":0},{"$f":"F20*1.15","v":0},0,{"$f":"(I20-F20)/F20","v":{"$error":"#DIV/0!"}},null,null,null,{"$f":"M20*0.8","v":0},{"$f":"M20*1.2","v":0},null,{"$f":"(P20-P19)","v":0},{"$f":"(Q20-M20)/M20","v":{"$error":"#DIV/0!"}},null,null,{"$f":"0.16*($G$13*1000)^0.5*(55-$G$14)*30*24/1000","v":0},0,{"$f":"(V20-M20)/M20","v":{"$error":"#DIV/0!"}},{"$error":"#DIV/0!"}]
[null,null,"mars",null,null,null,0,0,0,{"$error":"#DIV/0!"},null,null,null,0,0,null,0,{"$error":"#DIV/0!"},null,null,0,0,{"$error":"#DIV/0!"},{"$error":"#DIV/0!"}]
[null,null,"avril",null,null,null,0,0,0,{"$error":"#DIV/0!"},null,null,null,0,0,null,0,{"$error":"#DIV/0!"},null,null,0,0,{"$error":"#DIV/0!"},{"$error":"#DIV/0!"}]
[null,null,"mai",null,null,null,0,0,0,{"$error":"#DIV/0!"},null,null,null,0,0,null,0,{"$error":"#DIV/0!"},null,null,0,0,{"$error":"#DIV/0!"},{"$error":"#DIV/0!"}]
[null,null,"juin",null,null,null,0,0,0,{"$error":"#DIV/0!"},null,null,null,0,0,null,0,{"$error":"#DIV/0!"},null,null,0,0,{"$error":"#DIV/0!"},{"$error":"#DIV/0!"}]
[null,null,"juillet",null,null,null,0,0,0,{"$error":"#DIV/0!"},null,null,null,0,0,null,0,{"$error":"#DIV/0!"},null,null,0,0,{"$error":"#DIV/0!"},{"$error":"#DIV/0!"}]
[null,null,"août",null,null,null,0,0,0,{"$error":"#DIV/0!"},null,null,null,0,0,null,0,{"$error":"#DIV/0!"},null,null,0,0,{"$error":"#DIV/0!"},{"$error":"#DIV/0!"}]
[null,null,"septembre",null,null,null,0,0,0,{"$error":"#DIV/0!"},null,null,null,0,0,null,0,{"$error":"#DIV/0!"},null,null,0,0,{"$error":"#DIV/0!"},{"$error":"#DIV/0!"}]
[null,null,"octobre",null,null,null,0,0,0,{"$error":"#DIV/0!"},null,null,null,0,0,null,0,{"$error":"#DIV/0!"},null,null,0,0,{"$error":"#DIV/0!"},{"$error":"#DIV/0!"}]
[null,null,"novembre",null,null,null,0,0,0,{"$error":"#DIV/0!"},null,null,null,0,0,null,0,{"$error":"#DIV/0!"},null,null,0,0,{"$error":"#DIV/0!"},{"$error":"#DIV/0!"}]
[null,null,"décembre",null,null,null,0,0,0,{"$error":"#DIV/0!"},null,null,null,0,0,null,0,{"$error":"#DIV/0!"},null,null,0,0,{"$error":"#DIV/0!"},{"$error":"#DIV/0!"}]
[null,null,"TOTAL",null,null,{"$f":"SUM(F19:F30)","v":0},{"$f":"SUM(G19:G30)","v":0},0,{"$f":"SUM(I19:I30)","v":0},{"$error":"#DIV/0!"},null,null,null,null,{"$f":"SUM(O19:O30)","v":0},null,{"$f":"SUM(Q19:Q30)","v":0},{"$error":"#DIV/0!"},null,null,{"$f":"SUM(U19:U30)","v":0},{"$f":"SUM(V19:V30)","v":0},{"$error":"#DIV/0!"},{"$f":"V31/(V31+(S30-S18))","v":{"$error":"#DIV/0!"}}]
[null,null,"Productivité moyenne annuelle =total annuel énergie solaire utile / surface capteurs [kWh/m²]",null,null,null,null,null,null,null,null,null,{"$f":"Q31/$G$12","v":{"$error":"#DIV/0!"}},null,null,null,{"$f":"V31/$G$12","v":{"$error":"#DIV/0!"}}]
[]
[null,null,"*Qstapp en kWh : Pertes du ballon de référence correspond égal au volume occupé par la partie appoint dans le ballon bi-énergie"]
[null,null,"Qst,app = 0,16 . (Vst)^0,5 . [ Tst - Tloc ] . Njm. 24 / 1000                                                                                                                                                                  Vst [l] : volume de stockage de référence égal au volume occupé par la partie appoint dans le ballon bi-énergie, Tst : température de stockage = 55 °C (même si les normes EN 12976 ou ENV 12977 indiquent une température de stockage de référence de 52,5 °C), Tloc : température du local où est situé le ballon (15 °C si local non chauffé), Njm : nombre de jours du mois"]
[null,null,"Attention : "]
[null,null,"-Si la productivité mensuelle (ou l’énergie solaire utile) réelle est différente de celle prévisionnelle (productivité réelle < 20% productivité prévisionnelle), vérifier que les consommations en m3 d’eau prévisionnelles et réelles soient proches l'une de l'autre (15% d'écart max). Si tel est le cas, prendre contact avec l’installateur ou l’exploitant. En effet, si pour des consommations d’eau mensuelles quasi-similaires entre l’étude et le réel, la productivité a fortement chuté, l’installation présente très certainement un dysfonctionnement qu’il faut rapidement corriger. Si les consommations en ECS sont différentes de 30% de l'étude, il sera nécessaire de refaire un calcul théorique avec les données d'ensoleillement réelles du site et les valeurs réelles de puisage (cf Onglet rappel théorique suivi). "]
[]
[null,null,"Engagements du bénéficaire : "]
[null,null,"-Au moins 80% de l'engagement de production de chaleur EnR&R issu de l'étude de faisabilité. "]
[]
[null,null,"Poit de vigilance : "]
[null,null," - Pertes bouclage < 0,5 x Besoins ECS pour les bâtiments neufs\n - Pertes bouclage <  Besoins ECS pour les bâtiments existants"]

{"sheet":"Suivi instal TYPE 4","index":9,"n_rows":37,"n_cols":23,"rows_kept":37,"cut":false,"hidden":false,"merged":[[36,2,36,13],[1,2,2,10],[6,2,6,5],[6,6,6,7],[7,2,7,5],[7,6,7,7],[8,2,8,5],[8,6,8,7],[9,2,9,5],[9,6,9,7],[28,2,28,8],[30,2,30,13],[33,2,33,13],[11,5,11,7]]}
[]
[null,null,"Tableau de bord de suivi – Année 1 "]
[]
[null,null,"PAC SOLAIRE"]
[]
[]
[null,null,"Adresse de l’installation:"]
[null,null,"Date de mise en service :"]
[null,null,"Date du début de suivi :"]
[null,null,"Nom et coordonnées de l'exploitant :"]
[null,null,"Puissance de la PAC [kW]"]
[null,null,null,null,null,"VES prévisionnel",null,null,null,null,null,null,null,null,null,null,null,null,null,null,"Si BOUCLAGE"]
[null,null,"Mois","Date du relevé","Index Vecs réel [m3]","Vecs prévisionnel [m3]","Vecs - 15%","Vecs +15%","Vecs réel [m3]","Ecart sur Vecs%","Index Qapp_utile  [kWh] ","Index  QPacSol [kWh]    ","QPacSol [kWh]   ","WPacSol [kWh] ","EnR Utile réelle [kWh]","EnR Utile prévisonnelle [kWh]","Ecart sur ENR utile%","Fpac Taux de couverture PAC [%]","COPréel","Index Qecs [kWh]","Index Qpr bcl  [kWh]","Qecs [kWh]","Qdis [kWh]"]
[null,null,null,null,"Volume ECS consommée relevé  sur compteur ","Valeurs étude de dimensionnement ","Valeurs étude minorée de 15%","Valeurs étude majorée de 15%","Calculé","Calculé"," relevé compteur : Energie d'appoint utile sortie chaudière"," relevé compteur  : Energie relevée sur le compteur sortie PAC","Calculé : \nEnergie sortie PAC  "," relevé compteur  : Energie consommée par la PAC","Calculé :   \n(QPacSol-WPacSol)*0,95","Valeurs étude de dimensionnement ","Calculé","Calculé :\nEnR Utile/ (EnR Utile+Qapp_utile)","Calculé :  QPacSol/WPacSol","relevé sur compteur : Energie livrée exclusivement à l'ECS","relevé compteur : Energie livrée à la boucle de distribution","Calculé","Calculé"]
[null,null,"0 - (année de référence)"]
[null,null,"janvier",null,null,null,{"$f":"F16*0.85","v":0},{"$f":"F16*1.15","v":0},{"$f":"E16-E15","v":0},{"$f":"(I16-F16)/F16","v":{"$error":"#DIV/0!"}},null,null,{"$f":"IF(L16=0,\"\",(L16-L15))","v":""},null,{"$f":"(M16-(N16-N15))*0.95","v":{"$error":"#VALUE!"}},null,{"$f":"(O16-P16)/P16","v":{"$error":"#VALUE!"}},{"$f":"O16/(O16+(K16-K15))","v":{"$error":"#VALUE!"}},{"$f":"(L16-L15)/(N16-N15)","v":{"$error":"#DIV/0!"}},null,null,{"$f":"T16-T15","v":0},{"$f":"U16-U15","v":0}]
[null,null,"février",null,null,null,{"$f":"F17*0.85","v":0},{"$f":"F17*1.15","v":0},0,{"$f":"(I17-F17)/F17","v":{"$error":"#DIV/0!"}},null,null,{"$f":"IF(L17=0,\"\",(L17-L16))","v":""},null,{"$f":"(M17-(N17-N16))*0.95","v":{"$error":"#VALUE!"}},null,{"$f":"(O17-P17)/P17","v":{"$error":"#VALUE!"}},{"$f":"O17/(O17+(K17-K16))","v":{"$error":"#VALUE!"}},{"$f":"(L17-L16)/(N17-N16)","v":{"$error":"#DIV/0!"}},null,null,{"$f":"T17-T16","v":0},0]
[null,null,"mars",null,null,null,0,0,0,{"$error":"#DIV/0!"},null,null,"",null,{"$error":"#VALUE!"},null,{"$error":"#VALUE!"},{"$error":"#VALUE!"},{"$error":"#DIV/0!"},null,null,0,0]
[null,null,"avril",null,null,null,0,0,0,{"$error":"#DIV/0!"},null,null,"",null,{"$error":"#VALUE!"},null,{"$error":"#VALUE!"},{"$error":"#VALUE!"},{"$error":"#DIV/0!"},null,null,0,0]
[null,null,"mai",null,null,null,0,0,0,{"$error":"#DIV/0!"},null,null,"",null,{"$error":"#VALUE!"},null,{"$error":"#VALUE!"},{"$error":"#VALUE!"},{"$error":"#DIV/0!"},null,null,0,0]
[null,null,"juin",null,null,null,0,0,0,{"$error":"#DIV/0!"},null,null,"",null,{"$error":"#VALUE!"},null,{"$error":"#VALUE!"},{"$error":"#VALUE!"},{"$error":"#DIV/0!"},null,null,0,0]
[null,null,"juillet",null,null,null,0,0,0,{"$error":"#DIV/0!"},null,null,"",null,{"$error":"#VALUE!"},null,{"$error":"#VALUE!"},{"$error":"#VALUE!"},{"$error":"#DIV/0!"},null,null,0,0]
[null,null,"août",null,null,null,0,0,0,{"$error":"#DIV/0!"},null,null,"",null,{"$error":"#VALUE!"},null,{"$error":"#VALUE!"},{"$error":"#VALUE!"},{"$error":"#DIV/0!"},null,null,0,0]
[null,null,"septembre",null,null,null,0,0,0,{"$error":"#DIV/0!"},null,null,"",null,{"$error":"#VALUE!"},null,{"$error":"#VALUE!"},{"$error":"#VALUE!"},{"$error":"#DIV/0!"},null,null,0,0]
[null,null,"octobre",null,null,null,0,0,0,{"$error":"#DIV/0!"},null,null,"",null,{"$error":"#VALUE!"},null,{"$error":"#VALUE!"},{"$error":"#VALUE!"},{"$error":"#DIV/0!"},null,null,0,0]
[null,null,"novembre",null,null,null,0,0,0,{"$error":"#DIV/0!"},null,null,"",null,{"$error":"#VALUE!"},null,{"$error":"#VALUE!"},{"$error":"#VALUE!"},{"$error":"#DIV/0!"},null,null,0,0]
[null,null,"décembre",null,null,null,0,0,0,{"$error":"#DIV/0!"},null,null,"",null,{"$error":"#VALUE!"},null,{"$error":"#VALUE!"},{"$error":"#VALUE!"},{"$error":"#DIV/0!"},null,null,0,0]
[null,null,"TOTAL",null,null,{"$f":"SUM(F16:F27)","v":0},{"$f":"SUM(G16:G27)","v":0},0,{"$f":"SUM(I16:I27)","v":0},{"$error":"#DIV/0!"},null,null,{"$f":"SUM(M16:M27)","v":0},null,{"$f":"SUM(O16:O27)","v":{"$error":"#VALUE!"}},{"$f":"SUM(P16:P27)","v":0},{"$f":"(O28-P28)/P28","v":{"$error":"#VALUE!"}},{"$f":"O28/(O28+(K27-K15))","v":{"$error":"#VALUE!"}},{"$f":"(L27-L15)/(N27-N15)","v":{"$error":"#DIV/0!"}},null,null,{"$f":"SUM(V16:V27)","v":0},{"$f":"SUM(W16:W27)","v":0}]
[]
[null,null,"Attention : "]
[null,null,"Si la production mensuelle réelle est différente de celle prévisionnelle (production réelle < 20% productivité prévisionnelle), vérifier que les consommations en m3 d’eau prévisionnelles et réelles soient proches l'une de l'autre (15% d'écart max). Si tel est le cas, prendre contact avec l’installateur ou l’exploitant. En effet, si pour des consommations d’eau mensuelles quasi-similaires entre l’étude et le réel, la productivité a fortement chuté, l’installation présente très certainement un dysfonctionnement qu’il faut rapidement corriger. Si les consommations en ECS sont différentes de 30% de l'étude, il sera nécessaire de refaire un calcul théorique avec les données d'ensoleillement réelles du site et les valeurs réelles de puisage . "]
[]
[null,null,"Engagements du bénéficaire : "]
[null,null," - Si l’appoint est réalisé par effet Joule la part de couverture du besoin fournie par la PAC (Fpac ) doit être suppérieur à 90% \n - COP machine  moyen annuel supérieur à 2,8\n"]
[]
[null,null,"Poit de vigilance : "]
[null,null," - Pertes bouclage < 0,5 x Besoins ECS pour les bâtiments neufs\n - Pertes bouclage <  Besoins ECS pour les bâtiments existants\n - Si la mesure est faite en sortie de PAC et non de ballon, la production sera minorée de 5 % pour tenir compte des pertes d'ou le calcul de l'EnR Utile = (QPacSol-WPacSol)*0,95"]